{"text_format":"3","workbook":"xlsx","n_sheets":1,"sheets":["Annexure D- Pricing Schedule"],"not_rendered":{"defined_names":2},"read":"whole","date_system":"1900"}

{"sheet":"Annexure D- Pricing Schedule","index":0,"n_rows":33,"n_cols":14,"rows_kept":33,"merged":[[0,0,0,13],[1,0,1,13],[2,0,2,13],[3,0,4,1],[3,2,4,2],[3,3,4,3],[3,4,3,6],[3,7,3,9],[3,10,3,12],[3,13,4,13],[6,0,6,12],[7,0,7,12],[8,0,8,12],[10,0,10,13],[12,0,12,13],[13,0,14,1],[13,2,14,2],[13,3,14,3],[13,4,13,6],[13,7,13,9],[13,10,13,12],[13,13,14,13],[15,0,17,0],[18,0,18,12],[19,0,19,12],[20,0,20,12],[21,0,21,13],[22,0,22,13],[24,0,24,12]]}
["Annexure D1"]
["Provision of a Research Ethics Training Course to the CSIR for a period of 36 months\nRFP No. 1096/07/08/2023"]
["Group A: REC members (1 day) Total of 12 members that will be trained once in the 3-year cycle "]
["Group A: REC members (1 day) \nTotal of 12 members that will be trained once in the 3-year cycle ",null,"Quantity","Session","Year 1",null,null,"Year 2",null,null,"Year 3",null,null,"Totals"]
[{"$nulls":4},"Rate per person","Total per category per session","Total per category per Year","Rate per person","Total per category per session","Total per category per Year","Rate per person","Total per category per session","Total per category per Year"]
["Pretoria","Group 10-15",{"v":12,"d":"12.00"},1,null,null,{"$f":"C6*D6*E6","v":0},null,{"$f":"C6*H6","v":0},{"$f":"C6*D6*H6","v":0},null,null,{"$f":"C6*D6*K6","v":0},{"$f":"G6+J6+M6","v":0}]
["Total Cost (VAT Exclusive)",{"$nulls":12},{"$f":"SUM(N6:N6)","v":0}]
["Value Added Tax (VAT)",{"$nulls":12},{"$f":"N7*0.15","v":0}]
["Total Cost (VAT Inclusive) for twelve (12) months",{"$nulls":12},{"$f":"N7+N8","v":0}]
[]
["Notes\n"]
[]
["Group B: Research Managers and CSIR researchers (2 days)Three (3) sessions per annum per categories"]
["Group B: Research Managers and CSIR researchers (2 days) \nThree (3) sessions per annum per categories",null,"Quantity","Session","Year 1",null,null,"Year 2",null,null,"Year 3",null,null,"Totals"]
[{"$nulls":4},"Rate per person","Total per category per session","Total per category per Year","Rate per person","Total per category per session","Total per category per Year","Rate per person","Total per category per session","Total per category per Year"]
["Pretoria","Group 1-15",{"v":15,"d":"15.00"},3,null,{"$f":"C16*E16","v":0},{"$f":"C16*D16*E16","v":0},null,{"$f":"C16*H16","v":0},{"$f":"C16*D16*H16","v":0},null,{"$f":"C16*K16","v":0},{"$f":"C16*D16*K16","v":0},{"$f":"G16+J16+M16","v":0}]
[null,"Group 16-30",20,3,null,{"$f":"C17*E17","v":0},{"$f":"C17*D17*E17","v":0},null,{"$f":"C17*H17","v":0},{"$f":"C17*D17*H17","v":0},null,{"$f":"C17*K17","v":0},{"$f":"C17*D17*K17","v":0},{"$f":"G17+J17+M17","v":0}]
[null,"Group 31-50",50,3,null,0,{"$f":"C18*D18*E18","v":0},null,0,{"$f":"C18*D18*H18","v":0},null,0,{"$f":"C18*D18*K18","v":0},0]
["Total Cost (VAT Exclusive)",{"$nulls":12},{"$f":"SUM(N16:N18)","v":0}]
["Value Added Tax (VAT)",{"$nulls":12},{"$f":"N19*0.15","v":0}]
["Total Cost (VAT Inclusive) for twelve (12) months",{"$nulls":12},{"$f":"N19+N20","v":0}]
[]
["Notes"]
[]
["Bid Price used for Evaluation purposes",{"$nulls":12},{"$f":"N21+N9","v":0}]
{"$rows_empty":7}
[{"$nulls":5},"\t\n\t"]